fUST/lending_fUST_20251012
["ID","MTS","AMOUNT","RATE_DAILY","PERIOD"]
[390936080,1760224276530,-155.177154,0.0003035,30]
[390936081,1760224276539,-151.0,0.0003035,30]
[390936082,1760224276548,-151.0,0.0003035,30]
[390936083,1760224276557,-151.0,0.0003035,30]
[390936084,1760224276566,-151.0,0.0003035,30]
[390936085,1760224276575,-156.777868,0.0003035,30]
[390936086,1760224276584,-151.0,0.0003035,30]
[390936087,1760224276593,-151.0,0.0003035,30]
[390936088,1760224276602,-151.0,0.0003035,30]
[390936089,1760224276611,-151.0,0.0003035,15]
[390936090,1760224276620,-151.0,0.0003035,15]
[390936091,1760224276628,-151.0,0.0003035,15]
[390936092,1760224276638,-151.0,0.0003035,30]
[390936093,1760224276647,-151.0,0.0003035,30]
[390936094,1760224276657,-151.0,0.0003035,30]
[390936095,1760224276666,-151.0,0.0003035,30]
[390936096,1760224276675,-151.0,0.0003035,30]
[390936097,1760224276684,-151.0,0.0003035,30]
[390936098,1760224276693,-151.0,0.0003035,30]
[390936099,1760224276703,-151.0,0.0003035,30]
[390936100,1760224276712,-151.0,0.0003035,30]
[390936101,1760224276721,-151.0,0.0003035,30]
[390936102,1760224276729,-151.0,0.0003035,30]
[390936103,1760224276739,-151.0,0.0003035,30]
[390936104,1760224276748,-151.0,0.0003035,30]
[390936105,1760224276758,-151.0,0.0003035,30]
[390936106,1760224276767,-151.0,0.0003035,30]
[390936107,1760224276776,-154.507525,0.0003035,30]
[390936108,1760224276785,-151.0,0.0003035,30]
[390936109,1760224276794,-151.0,0.0003035,30]
[390936110,1760224276803,-151.0,0.0003035,30]
[390936111,1760224276812,-475.673488,0.0003035,30]
[390936112,1760224276822,-475.673488,0.0003035,30]
[390936113,1760224276831,-475.673488,0.0003035,30]
[390936114,1760224276840,-475.673488,0.0003035,30]
[390936115,1760224276850,-151.0,0.0003035,30]
[390936116,1760224276859,-151.0,0.0003035,30]
[390936117,1760224276869,-151.0,0.0003035,30]
[390936118,1760224276877,-219.444517,0.0003035,30]
[390936119,1760224276887,-219.444517,0.0003035,30]
[390936120,1760224276897,-219.444517,0.0003035,30]
[390936121,1760224276906,-219.444517,0.0003035,30]
[390936122,1760224276917,-293.53439,0.0003035,30]
[390936123,1760224276926,-533.058781,0.0003035,30]
[390936124,1760224276935,-533.058781,0.0003035,30]
[390936125,1760224276945,-533.058781,0.0003035,30]
[390936126,1760224276954,-533.058781,0.0003035,30]
[390936127,1760224276963,-151.0,0.0003035,30]
[390936128,1760224276973,-274.599595,0.0003035,30]
[390936129,1760224276983,-151.0,0.00030373,30]
[390936130,1760224276996,-151.0,0.00030373,30]
[390936131,1760224277006,-151.0,0.00030373,30]
[390936132,1760224277015,-209.330669,0.00030373,30]
[390936133,1760224277024,-151.0,0.00030373,15]
[390936134,1760224277034,-151.0,0.00030373,15]
[390936135,1760224277043,-151.0,0.00030373,15]
[390936136,1760224277053,-151.0,0.00030373,30]
[390936137,1760224277063,-151.0,0.00030373,30]
[390936138,1760224277072,-151.0,0.00030373,30]
[390936139,1760224277082,-151.0,0.00030373,30]
[390936140,1760224277092,-151.0,0.00030373,30]
[390936141,1760224277102,-151.0,0.00030373,30]
[390936142,1760224277111,-205.668262,0.00030373,30]
[390936143,1760224277121,-295.742796,0.00030373,30]
[390936144,1760224277130,-151.0,0.00030373,30]
[390936145,1760224277142,-151.0,0.00030373,30]
[390936146,1760224277151,-151.0,0.00030373,30]
[390936147,1760224277160,-162.666953,0.00030373,30]
[390936148,1760224277169,-178.360892,0.00030373,30]
[390936149,1760224277178,-178.360892,0.00030373,30]
[390936150,1760224277188,-178.360892,0.00030373,30]
[390936151,1760224277197,-178.360892,0.00030373,30]
[390936152,1760224277206,-255.531752,0.00030373,30]
[390936153,1760224277216,-255.531752,0.00030373,30]
[390936154,1760224277226,-255.531752,0.00030373,30]
[390936155,1760224277235,-255.531752,0.00030373,30]
[390936156,1760224277249,-151.0,0.00030373,30]
[390936157,1760224277259,-241.119577,0.00030373,30]
[390936158,1760224277269,-241.119577,0.00030373,30]
[390936159,1760224277279,-241.119577,0.00030373,30]
[390936160,1760224277289,-241.119577,0.00030373,30]
[390936161,1760224277298,-10000.0,0.00030389,2]
[390936162,1760224277309,-7290.0,0.00030389,2]
[390936163,1760224277319,-152.06689,0.00030389,30]
[390936164,1760224277330,-152.06689,0.00030389,30]
[390936165,1760224277340,-152.06689,0.00030389,30]
[390936166,1760224277350,-152.06689,0.00030389,30]
[390936167,1760224277360,-303.410261,0.00030389,30]
[390936168,1760224277373,-303.410261,0.00030389,30]
[390936169,1760224277384,-303.410261,0.00030389,30]
[390936170,1760224277393,-303.410261,0.00030389,30]
[390936171,1760224277402,-151.0,0.00030389,30]
[390936172,1760224277412,-151.0,0.00030389,30]
[390936173,1760224277421,-151.0,0.00030389,30]
[390936174,1760224277430,-151.0,0.00030389,30]
[390936175,1760224277440,-151.0,0.00030389,30]
[390936176,1760224277450,-151.0,0.00030389,30]
[390936177,1760224277459,-152.530314,0.00030389,30]
[390936178,1760224277469,-193.29991,0.00030389,30]
[390936179,1760224277478,-151.0,0.00030389,30]
[390936180,1760224277489,-151.0,0.00030389,30]
[390936181,1760224277498,-151.0,0.00030389,30]
[390936182,1760224277508,-475.673488,0.00030389,30]
[390936183,1760224277517,-475.673488,0.00030389,30]
[390936184,1760224277527,-475.673488,0.00030389,30]
[390936185,1760224277537,-151.0,0.00030389,30]
[390936186,1760224277548,-151.0,0.00030389,30]
[390936187,1760224277557,-475.673496,0.00030389,30]
[390936188,1760224277566,-151.0,0.00030389,30]
[390936189,1760224277575,-151.0,0.00030389,30]
[390936190,1760224277586,-151.0,0.00030389,30]
[390936191,1760224277595,-201.0,0.00030389,30]
[390936192,1760224277605,-151.0,0.00030389,30]
[390936193,1760224277615,-151.0,0.00030389,30]
[390936194,1760224277624,-338.494325,0.00030389,30]
[390936195,1760224277634,-338.494325,0.00030389,30]
[390936196,1760224277643,-338.494325,0.00030389,30]
[390936197,1760224277653,-338.49433,0.00030389,30]
[390936198,1760224277662,-151.0,0.00030389,30]
[390936199,1760224277672,-151.0,0.00030389,30]
[390936200,1760224277681,-151.0,0.00030389,30]
[390936201,1760224277691,-151.0,0.00030389,30]
[390936202,1760224277700,-151.0,0.00030389,30]
[390936203,1760224277710,-151.0,0.00030389,30]
[390936204,1760224277719,-151.0,0.00030389,30]
[390936205,1760224277728,-193.649664,0.00030389,30]
[390936206,1760224277740,-151.0,0.00030389,30]
[390936207,1760224277750,-505.040605,0.00030389,30]
[390936208,1760224277760,-151.0,0.00030389,30]
[390936209,1760224277770,-505.040605,0.00030389,30]
[390936210,1760224277779,-175.421144,0.00030389,30]
[390936211,1760224277789,-151.0,0.00030389,30]
[390936212,1760224277799,-505.040605,0.00030389,30]
[390936213,1760224277808,-505.040613,0.00030389,30]
[390936214,1760224277817,-151.0,0.00030389,30]
[390936215,1760224277827,-151.0,0.00030389,30]
[390936216,1760224277836,-154.809388,0.000304,3]
[390936217,1760224277845,-152.19818,0.000304,3]
[390936218,1760224277855,-151.0,0.00030406,30]
[390936219,1760224277864,-161.388086,0.00030406,30]
[390936220,1760224277873,-151.0,0.00030406,30]
[390936221,1760224277882,-151.0,0.00030406,30]
[390936222,1760224277892,-151.0,0.00030406,30]
[390936223,1760224277902,-205.192016,0.00030406,30]
[390936224,1760224277911,-151.0,0.00030406,30]
[390936225,1760224277921,-151.0,0.00030406,30]
[390936226,1760224277930,-151.0,0.00030406,30]
[390936227,1760224277939,-208.4,0.00030406,60]
[390936228,1760224277948,-150.0,0.00030407,2]
[390936229,1760224277958,-104809.16071979,0.00030407,20]
[390936230,1760224278393,-3e-08,0.00022382,2]
[390936231,1760224278541,180.54889743,0.00021798,2]
[390936232,1760224278694,-337.32,0.00022373,10]
[390936233,1760224278704,-499.99999997,0.00022382,2]
[390936234,1760224278715,-500.00000003,0.00022382,2]
[390936235,1760224278724,-500.0,0.00022382,2]
[390936236,1760224278734,-500.0,0.00022382,2]
[390936237,1760224278747,-504.78,0.00022382,2]
[390936238,1760224278756,-504.78,0.00022382,2]
[390936239,1760224278765,-504.78,0.00022382,2]
[390936240,1760224278774,-504.78,0.00022382,2]
[390936241,1760224278784,-504.78,0.00022382,2]
[390936242,1760224278793,-500.0,0.00022383,2]
[390936243,1760224278803,-676.34,0.00022383,2]
[390936244,1760224278812,-337.9,0.00022383,2]
[390936245,1760224278821,-676.34,0.00022383,2]
[390936246,1760224278831,-676.34,0.00022383,2]
[390936247,1760224278840,-676.34,0.00022383,2]
[390936248,1760224278849,-676.34,0.00022383,2]
[390936249,1760224278859,-676.34,0.00022383,2]
[390936250,1760224278868,-222.45318128,0.00022383,2]
[390936251,1760224278887,-453.88681872,0.00022383,2]
[390936252,1760224278896,-676.34,0.00022383,2]
[390936253,1760224278905,-139.47777828,0.00022383,2]
[390936254,1760224278916,-536.86222172,0.00022383,2]
[390936255,1760224278925,-26.34917213,0.00022383,2]
[390936256,1760224279088,-504.78,0.00022382,2]
[390936257,1760224279098,-160.85679311,0.00022382,2]
[390936258,1760224279108,-343.92320689,0.00022382,2]
[390936259,1760224279118,-504.78,0.00022382,2]
[390936260,1760224279127,-504.78,0.00022382,2]
[390936261,1760224279136,-504.78,0.00022382,2]
[390936262,1760224279144,-504.78,0.00022382,2]
[390936263,1760224279154,-504.78,0.00022382,2]
[390936264,1760224279164,-504.78,0.00022382,2]
[390936265,1760224279173,-504.78,0.00022382,2]
[390936266,1760224279182,-504.78,0.00022382,2]
[390936267,1760224279191,-504.78,0.00022382,2]
[390936268,1760224279200,-649.99082787,0.00022383,2]
[390936269,1760224279210,-676.34,0.00022383,2]
[390936270,1760224279220,-676.34,0.00022383,2]
[390936271,1760224279229,-676.34,0.00022383,2]
[390936272,1760224279237,-676.34,0.00022383,2]
[390936273,1760224279250,-222.84517064,0.00022383,2]
[390936274,1760224279270,-504.78,0.00022382,2]
[390936275,1760224279280,-453.49482936,0.00022383,2]
[390936276,1760224279290,-676.34,0.00022383,2]
[390936277,1760224279298,-676.34,0.00022383,2]
[390936278,1760224279307,-676.34,0.00022383,2]
[390936279,1760224279316,-676.34,0.00022383,2]
[390936280,1760224279327,-676.34,0.00022383,2]
[390936281,1760224279336,-500.0,0.00022483,2]
[390936282,1760224279345,-500.0,0.00022483,2]
[390936283,1760224279354,-501.22993689,0.00022483,2]
[390936284,1760224279366,-500.0,0.00022582,2]
[390936285,1760224279375,-500.0,0.00022582,2]
[390936286,1760224279384,-500.0,0.00022582,2]
[390936287,1760224279393,-500.0,0.00022582,2]
[390936288,1760224279402,-500.0,0.00022582,2]
[390936289,1760224279413,-500.0,0.00022582,2]
[390936290,1760224279422,-500.0,0.00022582,2]
[390936291,1760224279431,-500.0,0.00022582,2]
[390936292,1760224279439,-500.0,0.00022582,2]
[390936293,1760224279449,-500.0,0.00022582,2]
[390936294,1760224279458,-525.14461187,0.00022582,2]
[390936295,1760224279470,-85.64140829,0.00022582,2]
[390936296,1760224279478,-151.0,0.00022682,7]
[390936297,1760224279492,-151.0,0.00022682,7]
[390936298,1760224279503,-151.0,0.00022683,7]
[390936299,1760224279512,-151.0,0.00022683,7]
[390936300,1760224279522,-500.0,0.00022685,2]
[390936301,1760224279608,-500.0,0.00022685,2]
[390936302,1760224279619,-500.0,0.00022685,2]
[390936303,1760224279628,-500.0,0.00022685,2]
[390936304,1760224279637,-500.0,0.00022685,2]
[390936305,1760224279647,-500.0,0.00022685,2]
[390936306,1760224279655,-154.52174458,0.00022685,2]
[390936307,1760224279664,-151.0,0.000249,7]
[390936308,1760224279673,-216.529015,0.000249,7]
[390936309,1760224279682,-1000.0,0.0003,4]
[390936310,1760224279692,-151.0,0.0003035,30]
[390936311,1760224279701,-15196.49125444,0.00030407,20]
[390936312,1760224279714,-46283.53323215,0.00030407,20]
[390936313,1760224279724,-6682.52980171,0.00030407,20]
[390936314,1760224280032,5000.0,0.00021798,2]
[390936315,1760224280266,300.0,0.00021797,2]
[390936316,1760224281959,150.0,0.00018299,2]
[390936317,1760224282369,150.0,0.00019171,2]
[390936318,1760224282771,150.0,0.00020042,2]
[390936319,1760224283296,199.28,0.00020914,2]
[390936320,1760224283748,249.1,0.00021785,2]
[390936325,1760224357556,150.0,0.00020229,2]
[390936326,1760224357968,150.0,0.00021192,2]
[390936327,1760224367961,-5000.0,0.00022149,2]
[390936328,1760224390614,0.01,0.00022149,2]
[390936329,1760224390679,4999.99,0.00022149,2]
[390936330,1760224392812,-150.0,0.00022156,2]
[390936331,1760224409485,3695235.18926608,0.00027397,120]
[390936332,1760224413565,5000.0,0.00022373,2]
[390936333,1760224432560,150.0,0.00018963,2]
[390936334,1760224432968,150.0,0.00019866,2]
[390936335,1760224433404,150.0,0.00020769,2]
[390936336,1760224433837,154.04,0.00021672,2]
[390936337,1760224436724,5000.0,0.00022373,2]
[390936338,1760224459191,5000.0,0.00022373,2]
[390936339,1760224460588,172.3296369,0.00021609,2]
[390936340,1760224481593,4827.6803631,0.00022373,2]
[390936341,1760224481662,172.3196369,0.00022373,2]
[390936342,1760224494208,-500.0,0.00022373,2]
[390936343,1760224494274,-150.0,0.00022373,2]
[390936344,1760224494343,-281.1,0.00022373,10]
[390936345,1760224494410,-234.25,0.00022373,10]
[390936346,1760224494477,-195.21,0.00022373,10]
[390936347,1760224503460,162.68,0.00022373,10]
[390936348,1760224504086,5000.0,0.00022373,2]
[390936349,1760224506689,150.0,0.00019361,2]
[390936350,1760224507122,150.0,0.00020283,2]
[390936351,1760224507566,150.0,0.00021204,2]
[390936352,1760224508000,150.0,0.00022126,2]
[390936353,1760224508198,165.04515383,0.00022281,2]
[390936354,1760224514805,813.4,0.00022373,10]
[390936355,1760224527078,537.76484617,0.00022373,2]
[390936356,1760224531473,-4462.23515383,0.00022373,2]
[390936357,1760224531557,-300.0,0.0002238,2]
[390936358,1760224531642,-175.53969234,0.0002238,2]
[390936359,1760224537526,-124.46030766,0.0002238,2]
[390936360,1760224537610,-300.0,0.0002238,2]
[390936361,1760224537699,-1200.0,0.0002238,2]
[390936362,1760224549542,5000.0,0.0002238,2]
[390936363,1760224562439,300.0,0.0002238,2]
[390936364,1760224573157,1451.08938468,0.0002238,2]
[390936365,1760224576657,-3548.91061532,0.0002238,2]
[390936366,1760224576743,-829.0,0.00022381,2]
[390936367,1760224576837,-524.38,0.00022381,2]
[390936368,1760224579266,150.0,0.00019132,2]
[390936369,1760224579718,150.0,0.00020043,2]
[390936370,1760224580164,150.0,0.00020954,2]
[390936371,1760224580603,150.0,0.00021866,2]
[390936372,1760224582609,-524.38,0.00022381,2]
[390936373,1760224582684,-524.38,0.00022381,2]
[390936374,1760224582759,-524.38,0.00022381,2]
[390936375,1760224582838,-524.38,0.00022381,2]
[390936376,1760224582913,-524.38,0.00022381,2]
[390936377,1760224582990,-524.38,0.00022381,2]
[390936378,1760224583067,-524.38,0.00022381,2]
[390936379,1760224583145,-524.38,0.00022381,2]
[390936380,1760224583221,-524.38,0.00022381,2]
[390936381,1760224583299,-36.79,0.00022381,2]
[390936382,1760224586684,-487.59,0.00022381,2]
[390936383,1760224586766,-524.38,0.00022381,2]
[390936384,1760224586850,-500.0,0.00022381,2]
[390936385,1760224586932,-500.0,0.00022381,2]
[390936386,1760224587019,-500.0,0.00022381,2]
[390936387,1760224587103,-406.99789248,0.00022381,2]
[390936388,1760224587183,-588.51,0.00022381,2]
[390936389,1760224587265,-500.0,0.00022381,2]
[390936390,1760224587354,-500.0,0.00022381,2]
[390936391,1760224587437,-485.05421504,0.00022381,2]
[390936392,1760224590660,-14.94578496,0.00022381,2]
[390936393,1760224590738,-500.0,0.00022381,2]
[390936394,1760224590818,-500.0,0.00022381,2]
[390936395,1760224590892,-500.0,0.00022381,2]
[390936396,1760224590973,-500.0,0.00022381,2]
[390936397,1760224591050,-500.0,0.00022381,2]
[390936398,1760224591124,-500.0,0.00022381,2]
[390936399,1760224591200,-500.0,0.00022381,2]
[390936400,1760224591273,-500.0,0.00022381,2]
[390936401,1760224591348,-500.0,0.00022381,2]
[390936402,1760224591422,-470.11843008,0.00022381,2]
[390936403,1760224594765,-29.88156992,0.00022381,2]
[390936404,1760224594844,-500.0,0.00022381,2]
[390936405,1760224594923,-500.0,0.00022381,2]
[390936406,1760224595002,-500.0,0.00022381,2]
[390936407,1760224595083,-500.0,0.00022381,2]
[390936408,1760224595159,-500.0,0.00022381,2]
[390936409,1760224595234,-511.24192634,0.00022381,2]
[390936410,1760224595314,-500.0,0.00022381,2]
[390936411,1760224595394,-500.0,0.00022381,2]
[390936412,1760224595472,-500.0,0.00022381,2]
[390936413,1760224595550,-417.76300748,0.00022381,2]
[390936414,1760224596551,5000.0,0.00022373,2]
[390936415,1760224598710,-82.23699252,0.00022381,2]
[390936416,1760224598800,-500.0,0.00022381,2]
[390936417,1760224598878,-500.0,0.00022381,2]
[390936418,1760224598957,-500.0,0.00022381,2]
[390936419,1760224599033,-500.0,0.00022381,2]
[390936420,1760224599105,-500.0,0.00022381,2]
[390936421,1760224599178,-500.0,0.00022381,2]
[390936422,1760224599248,-197.14052573,0.00022381,2]
[390936423,1760224599319,-500.0,0.00022381,2]
[390936424,1760224599394,-351.13174617,0.00022381,2]
[390936425,1760224599471,-574.31,0.00022381,2]
[390936426,1760224599542,-16.06147116,0.00022381,2]
[390936427,1760224602773,-558.24852884,0.00022381,2]
[390936428,1760224602857,-574.31,0.00022381,2]
[390936429,1760224602937,-574.31,0.00022381,2]
[390936430,1760224603025,-500.0,0.00022381,2]
[390936431,1760224603110,-574.31,0.00022381,2]
[390936432,1760224603186,-500.0,0.00022381,2]
[390936433,1760224603263,-574.31,0.00022381,2]
[390936434,1760224603341,-500.0,0.00022381,2]
[390936435,1760224603412,-574.31,0.00022381,2]
[390936436,1760224604777,-500.0,0.00022381,2]
[390936437,1760224604857,-574.31,0.00022381,2]
[390936438,1760224604935,-500.0,0.00022381,2]
[390936439,1760224605021,-574.31,0.00022381,2]
[390936440,1760224605101,-574.31,0.00022381,2]
[390936441,1760224605181,-574.31,0.00022381,2]
[390936442,1760224605261,-414.57027361,0.00022381,2]
[390936443,1760224605337,-574.31,0.00022381,2]
[390936444,1760224605420,-574.31,0.00022381,2]
[390936445,1760224608839,-574.31,0.00022381,2]
[390936446,1760224608908,-574.31,0.00022381,2]
[390936447,1760224608990,-346.58629047,0.00022381,2]
[390936448,1760224609210,-574.31,0.00022381,2]
[390936449,1760224609285,-574.31,0.00022381,2]
[390936450,1760224609358,-574.31,0.00022381,2]
[390936451,1760224609433,-574.31,0.00022381,2]
[390936452,1760224609507,-574.31,0.00022381,2]
[390936453,1760224609583,-574.31,0.00022381,2]
[390936454,1760224611252,-574.31,0.00022381,2]
[390936455,1760224611328,-574.31,0.00022381,2]
[390936456,1760224611403,-574.39207028,0.00022381,2]
[390936457,1760224611474,-500.0,0.00022381,2]
[390936458,1760224611544,-500.0,0.00022381,2]
[390936459,1760224611614,-500.0,0.00022381,2]
[390936460,1760224611687,-567.87732806,0.00022381,2]
[390936461,1760224611759,-500.0,0.00022381,2]
[390936462,1760224611838,-500.0,0.00022381,2]
[390936463,1760224614877,-500.0,0.00022381,2]
[390936464,1760224614957,-500.0,0.00022381,2]
[390936465,1760224615034,-500.0,0.00022381,2]
[390936466,1760224615108,-500.0,0.00022381,2]
[390936467,1760224615184,-500.0,0.00022381,2]
[390936468,1760224615260,-500.0,0.00022381,2]
[390936469,1760224615336,-500.0,0.00022381,2]
[390936470,1760224615409,-500.0,0.00022381,2]
[390936471,1760224615490,-500.0,0.00022381,2]
[390936472,1760224615567,-500.0,0.00022381,2]
[390936473,1760224618589,4400.01,0.00022373,2]
[390936474,1760224618656,599.99,0.00022373,2]
[390936475,1760224620592,-500.0,0.00022381,2]
[390936476,1760224620669,-500.0,0.00022381,2]
[390936477,1760224620747,-500.0,0.00022381,2]
[390936478,1760224620826,-500.0,0.00022381,2]
[390936479,1760224620907,-500.0,0.00022381,2]
[390936480,1760224620991,-500.0,0.00022381,2]
[390936481,1760224621073,-500.0,0.00022381,2]
[390936482,1760224621149,-500.0,0.00022381,2]
[390936483,1760224621222,-500.0,0.00022381,2]
[390936484,1760224621293,-500.0,0.00022381,2]
[390936485,1760224624425,-300.0,0.0002238,2]
[390936486,1760224624506,-500.0,0.00022381,2]
[390936487,1760224624590,-500.0,0.00022381,2]
[390936488,1760224624675,-253.71694282,0.00022381,2]
[390936489,1760224624758,-500.0,0.00022381,2]
[390936490,1760224624842,-500.0,0.00022381,2]
[390936491,1760224624932,-500.0,0.00022381,2]
[390936492,1760224625024,-500.0,0.00022381,2]
[390936493,1760224625108,-500.0,0.00022381,2]
[390936494,1760224625191,-500.0,0.00022381,2]
[390936495,1760224625273,-392.57611436,0.00022381,2]
[390936496,1760224625863,-107.42388564,0.00022381,2]
[390936497,1760224625936,-500.0,0.00022381,2]
[390936498,1760224626016,-301.59,0.00022381,2]
[390936499,1760224626097,-500.0,0.00022381,2]
[390936500,1760224626175,-500.0,0.00022381,2]
[390936501,1760224626253,-500.0,0.00022381,2]
[390936502,1760224626326,-500.0,0.00022381,2]
[390936503,1760224626402,-500.0,0.00022381,2]
[390936504,1760224626476,-500.0,0.00022381,2]
[390936505,1760224626553,-500.0,0.00022381,2]
[390936506,1760224626625,-500.0,0.00022381,2]
[390936507,1760224627052,-500.0,0.00022381,2]
[390936508,1760224627127,-500.0,0.00022381,2]
[390936509,1760224627206,-500.0,0.00022381,2]
[390936510,1760224627281,-500.0,0.00022381,2]
[390936511,1760224627359,-500.0,0.00022381,2]
[390936512,1760224627434,-235.05,0.00022381,2]
[390936513,1760224627528,-500.0,0.00022381,2]
[390936514,1760224627607,-500.0,0.00022381,2]
[390936515,1760224627681,-500.0,0.00022381,2]
[390936516,1760224627757,-500.0,0.00022381,2]
[390936517,1760224627834,-29.91,0.00022381,2]
[390936518,1760224628089,-470.09,0.00022381,2]
[390936519,1760224628169,-500.0,0.00022381,2]
[390936520,1760224628245,-500.0,0.00022381,2]
[390936521,1760224628321,-500.0,0.00022381,2]
[390936522,1760224628399,-500.0,0.00022381,2]
[390936523,1760224628474,-500.0,0.00022381,2]
[390936524,1760224628549,-500.0,0.00022381,2]
[390936525,1760224628626,-500.0,0.00022381,2]
[390936526,1760224628703,-500.0,0.00022381,2]
[390936527,1760224628780,-500.0,0.00022381,2]
[390936528,1760224629060,-500.0,0.00022381,2]
[390936529,1760224629150,-500.0,0.00022381,2]
[390936530,1760224629239,-500.0,0.00022381,2]
[390936531,1760224629319,-500.0,0.00022381,2]
[390936532,1760224629403,-500.0,0.00022381,2]
[390936533,1760224631496,500.0,0.00022381,2]
[390936534,1760224631761,421.33960635,0.00022381,2]
[390936535,1760224633423,500.0,0.00022381,2]
[390936536,1760224633515,500.0,0.00022381,2]
[390936537,1760224640769,500.0,0.00022381,2]
[390936538,1760224641041,5000.0,0.00022381,2]
[390936539,1760224646080,1200.0,0.00022381,2]
[390936540,1760224647090,500.0,0.00022381,2]
[390936541,1760224650112,500.0,0.00022381,2]
[390936542,1760224650416,150.0,0.00019364,2]
[390936543,1760224650841,150.0,0.00020286,2]
[390936544,1760224651125,-500.0,0.00022382,2]
[390936545,1760224651202,-398.34,0.00022382,2]
[390936546,1760224651287,-500.0,0.00022382,2]
[390936547,1760224651359,-500.0,0.00022382,2]
[390936548,1760224651435,-500.0,0.00022382,2]
[390936549,1760224651505,-500.0,0.00022382,2]
[390936550,1760224651582,-385.17,0.00022382,2]
[390936551,1760224651659,-500.0,0.00022382,2]
[390936552,1760224651734,-500.0,0.00022382,2]
[390936553,1760224651819,-500.0,0.00022382,2]
[390936554,1760224652130,166.36,0.00021208,2]
[390936555,1760224652304,-500.0,0.00022382,2]
[390936556,1760224652388,-500.0,0.00022382,2]
[390936557,1760224652479,-500.0,0.00022382,2]
[390936558,1760224652571,-500.0,0.00022382,2]
[390936559,1760224652641,-500.0,0.00022382,2]
[390936560,1760224652713,-500.0,0.00022382,2]
[390936561,1760224652793,-500.0,0.00022382,2]
[390936562,1760224652865,-500.0,0.00022382,2]
[390936563,1760224652939,-500.0,0.00022382,2]
[390936564,1760224653025,-500.0,0.00022382,2]
[390936565,1760224653519,-500.0,0.00022382,2]
[390936566,1760224653602,-500.0,0.00022382,2]
[390936567,1760224653681,-204.18831529,0.00022382,2]
[390936568,1760224653766,-500.0,0.00022382,2]
[390936569,1760224653853,-500.0,0.00022382,2]
[390936570,1760224653940,-500.0,0.00022382,2]
[390936571,1760224654024,-500.0,0.00022382,2]
[390936572,1760224654108,-553.96272305,0.00022382,2]
[390936573,1760224654192,-500.0,0.00022382,2]
[390936574,1760224654272,-500.0,0.00022382,2]
[390936575,1760224654572,221.81,0.0002213,2]
[390936576,1760224654865,-500.0,0.00022382,2]
[390936577,1760224654958,-500.0,0.00022382,2]
[390936578,1760224655044,-500.0,0.00022382,2]
[390936579,1760224655136,-500.0,0.00022382,2]
[390936580,1760224655225,-500.0,0.00022382,2]
[390936581,1760224655312,-500.0,0.00022382,2]
[390936582,1760224655398,-500.0,0.00022382,2]
[390936583,1760224655481,-500.0,0.00022382,2]